Cogmind - Beta 16 @@@ ROGUE MODE // 2026.01.11 @ 20:46:28 Player: Glyb Result: Core destroyed Performance ------------- Evolutions (6) 3000 Regions Visited (9) 1800 Robots Destroyed (113) 565 Value Destroyed (4096) 4096 Prototype IDs (14) 280 Alien Tech Used (0) 0 Bonus (294) 294 TOTAL SCORE: 10035 Bonus ------- High Alert Combat Kills 14 Follower Combat Kills 280 Cogmind --------- Core Integrity 0/1150 Matter 233/300 Energy 645/645 System Corruption 0% Temperature Critical (505) Movement Treading (170) Location -4/Factory Parts ------- > --- POWER (3) -------- Micro Nuclear Core Antimatter Reactor Light Antimatter Reactor > --- PROPULSION (4) --- Enhanced Armored Medium Treads Heavy Siege Treads > --- UTILITY (9) ------ Advanced Cryofiber Web Compact Battery Advanced Targeting Computer Improved Target Analyzer Hardened Light Armor Plating Hardened Medium Armor Plating Hardened Medium Armor Plating Improved Force Field Hacking Suite > --- WEAPON (3) ------- Beamcaster Beamcaster Beamcaster > --- INVENTORY (5) ---- Backup Power III Energy Filter Hardened Light Armor Plating Heavy Battle Rifle Heavy Battle Rifle Peak State ------------ > --- POWER ------------ Backup Power III Backup Power III Micro Nuclear Core > --- PROPULSION ------- Enhanced Armored Medium Treads Heavy Siege Treads Combat Linear Gravjet > --- UTILITY ---------- Advanced Cryofiber Web Compact Battery Advanced Targeting Computer Improved Target Analyzer Hardened Light Armor Plating Hardened Medium Armor Plating Hardened Medium Armor Plating Improved Force Field Hacking Suite > --- WEAPON ----------- Beamcaster Beamcaster Beamcaster > --- INVENTORY -------- Hardened Light Armor Plating Heavy Ion Cannon Heavy Battle Rifle Heavy Battle Rifle Heavy Battle Rifle [Rating: 93] Favorites ----------- Power Meta Core Engine Improved Ion Engine Power Core Meta Core Reactor Antimatter Reactor Propulsion Light Treads Treads Light Treads Wheel Armored Wheel Hover Unit Combat Linear Gravjet Utility Small Storage Unit Device Terrain Scanner Storage Small Storage Unit Processor Advanced Targeting Computer Hackware Hacking Suite Protection Makeshift Light Armor Plating Weapon Heavy Ion Cannon Energy Gun Particle Gun Energy Cannon Heavy Ion Cannon Ballistic Cannon Slug Cannon Special Weapon Flamer Build | -11 -10 -10 -8 -7 -6 -5 -4 -4 -4 ------- Run | Yrd Mat Sub Mat Fac Fac Fac Fac Was Fac Slots Evolved 12 | . . . 4 2 2 2 2 . . Power 2 | . . . . 1 . 1 . . . Propulsion 2 | . . . 1 . . 1 . . . Utility 7 | . . . 2 1 2 . 2 . . Weapon 1 | . . . 1 . . . . . . Parts Attached 118 | 8 4 11 27 10 2 28 13 9 6 Power 15 | 1 2 2 . 1 . 6 1 . 2 Engine 7 | 1 2 1 . . . 2 1 . . Core 6 | . . 1 . 1 . 4 . . . Reactor 2 | . . . . . . . . . 2 Propulsion 26 | 3 1 2 8 . . 5 5 1 1 Treads 9 | 2 1 2 2 . . . 1 . 1 Leg . | . . . . . . . . . . Wheel 16 | 1 . . 6 . . 5 4 . . Hover 1 | . . . . . . . . 1 . Flight . | . . . . . . . . . . Utility 47 | 2 . 4 8 4 2 16 4 4 3 Device 20 | 1 . 3 3 2 . 8 . . 3 Storage 7 | 1 . . 3 . 1 1 1 . . Processor 5 | . . . 2 1 . 1 1 . . Hackware 1 | . . . . . . . 1 . . Protection 14 | . . 1 . 1 1 6 1 4 . Artifact . | . . . . . . . . . . Weapon 30 | 2 1 3 11 5 . 1 3 4 . Energy Gun 8 | 2 1 1 . 1 . . . 3 . Energy Cannon 19 | . . . 11 4 . 1 3 . . Ballistic Gun . | . . . . . . . . . . Ballistic Cannon 1 | . . . . . . . . 1 . Launcher . | . . . . . . . . . . Special Weapon 2 | . . 2 . . . . . . . Impact Weapon . | . . . . . . . . . . Slashing Weapon . | . . . . . . . . . . Piercing Weapon . | . . . . . . . . . . Special Melee Weapon . | . . . . . . . . . . Unidentified Prototypes 2 | . . . . 1 . . . . 1 Parts Lost 54 | . 1 1 14 . . 13 25 . . Power 7 | . 1 . . . . 2 4 . . Propulsion 19 | . . . 6 . . 6 7 . . Utility 16 | . . 1 3 . . 4 8 . . Weapon 12 | . . . 5 . . 1 6 . . Highest Loss Streak 23 | . 1 1 9 . . 4 23 . . To Critical Strikes . | . . . . . . . . . . Average Backups 9 | 2 7 6 11 14 14 13 10 4 5 Power . | . . . 2 2 2 1 1 . . Propulsion 2 | . 3 2 1 2 2 . . . . Utility 2 | . . 1 3 6 6 6 4 . 1 Weapon 2 | . 2 1 2 2 3 4 3 4 3 Tool/Special . | . . . . . . . . . . Unused Backups 18 | . 2 1 7 2 . . 1 1 4 Power 2 | . 1 . . 1 . . . . . Propulsion 1 | . . . 1 . . . . . . Utility 5 | . . . 3 1 . . . . 1 Weapon 8 | . 1 1 2 . . . . 1 3 Tool/Special 2 | . . . 1 . . . 1 . . Average Slot Usage (%) 95 | . 100 99 93 99 99 94 75 71 88 Engine 4 | . 14 7 . . . 2 . 8 5 Core 7 | . . 4 8 14 13 14 12 3 5 Treads 15 | . 28 28 8 . . . . 4 8 Wheel 7 | . . . 17 23 19 20 11 . . Device 11 | . 14 11 10 16 13 10 7 . 8 Storage 12 | . 14 12 14 15 19 11 9 5 5 Processor 2 | . . . 6 . . 4 10 10 10 Protection 6 | . . 4 2 5 13 8 8 14 16 Energy Gun 13 | . 28 22 3 . . . . 13 15 Energy Cannon 7 | . . . 19 23 20 17 13 . . Special Weapon 3 | . . 6 . . . . . . . Peak Build Rating 93 | 7 10 28 46 54 59 73 83 74 93 Average Rating 37 | 5 8 18 40 52 58 66 67 66 87 On Entrance 38 | . 7 9 28 45 53 59 73 36 74 Avg Prop Armor Cover (%) 3 | . 11 . 8 . . . . 1 1 Naked Turns . | . . . . . . . . . . Heaviest Build 113 | 15 18 25 52 68 80 105 113 52 84 Greatest Support 105 | 40 40 60 80 36 36 48 70 70 105 Greatest Overweight (x) 27 | . . . 11 1 2 3 27 . . Average Overweight (x) . | . . . . 1 2 1 2 . . Largest Inventory Capacity 15 | 8 8 8 15 15 15 15 15 5 5 Average Capacity 10 | 7 8 8 14 15 15 15 13 5 5 Most Carried 15 | 4 8 8 15 15 15 15 13 5 5 Average Carried 9 | 2 7 6 11 14 14 13 10 4 4 Final Capacity 15 | 8 8 8 15 15 15 15 5 5 5 Final Carried 15 | 4 7 6 15 15 15 14 . 5 5 Class Distribution -------------------- 42% | Tank 31% | Mutant 16% | Gunner 5% | Scavenger-Gunner Dominant Class ---------------- Mutant | -10/Materials Mutant | -10/Subcaves Gunner | -8/Materials Gunner | -7/Factory Tank | -6/Factory Tank | -5/Factory Scavenger-Gunner | -4/Factory Tank | -4/Waste Tank | -4/Factory Resources | -11 -10 -10 -8 -7 -6 -5 -4 -4 -4 ----------- Run | Yrd Mat Sub Mat Fac Fac Fac Fac Was Fac Matter Collected 1589 | 270 40 115 400 70 79 285 103 214 13 Remotely . | . . . . . . . . . . Salvage Created 4680 | 52 320 340 1345 528 324 1369 402 . . Parts 238 | 7 11 24 78 24 21 52 21 . . Haulers Intercepted 3 | . . . 2 1 . . . . . Recyclers Shooed 3 | . 1 . 1 . . 1 . . . Parts Field Recycled . | . . . . . . . . . . Retrieved Matter . | . . . . . . . . . . Parts Self-Destructed 19 | . . 19 . . . . . . . Prevented . | . . . . . . . . . . Parts Restored . | . . . . . . . . . . Kills | -11 -10 -10 -8 -7 -6 -5 -4 -4 -4 ------- Run | Yrd Mat Sub Mat Fac Fac Fac Fac Was Fac Combat Hostiles Destroyed 84 | . 7 14 26 8 4 19 6 . . Guns 22 | . 5 13 4 . . . . . . Cannons 45 | . . 1 16 4 4 17 3 . . AOE 9 | . . . 2 4 . . 3 . . Classes Destroyed 17 | 1 2 3 5 3 1 2 . . . Worker 4 | . . . . 3 . . 1 . . Builder 6 | . . . 3 . . 2 1 . . Tunneler 3 | 2 . . . 1 . . . . . Hauler 3 | . . . 2 1 . . . . . Recycler 4 | . . . . 2 . . 2 . . Operator 5 | . 2 . . . 2 . 1 . . Watcher 4 | . . . 3 . 1 . . . . Swarmer 21 | . . 9 7 . . . 5 . . Grunt 28 | . 7 . 10 5 . 6 . . . Brawler 1 | . . . . . . 1 . . . Duelist 1 | . . . 1 . . . . . . Sentry 14 | . . 1 5 . 3 5 . . . Specialist 6 | . . . 3 2 . . 1 . . Hunter 5 | . . . . 1 . 4 . . . Programmer 3 | . . . . . 1 2 . . . Heavy 1 | . . . . . . 1 . . . Subdweller 4 | . . 4 . . . . . . . Best Kill Streak 8 | 2 3 3 7 6 1 6 8 . . Combat Bots Only 6 | . 3 3 6 2 1 4 5 . . Max Kills in Single Turn 6 | 1 1 1 2 6 1 2 5 . . Gunslinging . | . . . . . . . . . . Exploded 3 | . . . 1 2 . . 3 . . Melee . | . . . . . . . . . . Uniques/NPCs Destroyed . | . . . . . . . . . . Combat | -11 -10 -10 -8 -7 -6 -5 -4 -4 -4 -------- Run | Yrd Mat Sub Mat Fac Fac Fac Fac Was Fac Hostile Shots Fired 917 | . 54 69 172 23 36 173 390 . . Missed 285 | . 16 22 31 12 13 44 147 . . Hits 632 | . 38 47 141 11 23 129 243 . . Projectile 632 | . 38 47 141 11 23 129 243 . . Critical Strikes 8 | . . 2 2 1 . 2 1 . . Damage Taken 10152 | . 461 481 2183 236 180 2885 3531 . 195 Core 2370 | . 125 107 425 33 11 499 975 . 195 Absorbed by Shields . | . . . . . . . . . . Regen/Repaired (Parts) 267 | . . . 84 . 89 . 46 20 28 Core Remaining (%) 62 | 100 . 7 22 95 98 50 . . . Volleys Fired 247 | 5 38 44 62 10 11 60 17 . . Largest 4 | 2 2 3 4 3 3 3 3 . . Hottest 294 | 100 115 225 251 210 195 228 294 . . Shots Fired 599 | 10 71 87 148 30 33 173 47 . . Gun 196 | 10 71 78 37 . . . . . . Cannon 394 | . . . 111 30 33 173 47 . . Launcher . | . . . . . . . . . . Special 9 | . . 9 . . . . . . . Kinetic . | . . . . . . . . . . Thermal 539 | 10 71 87 88 30 33 173 47 . . Explosive . | . . . . . . . . . . Electromagnetic 60 | . . . 60 . . . . . . Robot Hit Streak 16 | 8 8 8 12 11 4 16 7 . . Robot Miss Streak 8 | . 4 8 5 3 1 3 2 . . Penetration Max . | . . . . . . . . . . Secondary Targets 4 | . . 2 2 . . . . . . Max Gunslinging Chain 1 | . . 1 1 . . . . . . Shots Hit Robots 359 | 8 42 40 89 15 17 120 28 . . Core Hits 156 | 3 16 19 34 16 10 45 13 . . Critical Kills 2 | . . . 1 . . . 1 . . Critical Parts Destroyed 1 | . . . 1 . . . . . . Critical Strikes 13 | . 6 2 4 . . . 1 . . Burn 9 | . 6 2 1 . . . . . . Meltdown 2 | . . . 1 . . . 1 . . Destroy 1 | . . . 1 . . . . . . Corrupt 1 | . . . 1 . . . . . . Melee Attacks . | . . . . . . . . . . Impact . | . . . . . . . . . . Slashing . | . . . . . . . . . . Piercing . | . . . . . . . . . . Sneak Attacks . | . . . . . . . . . . Combat Hostiles . | . . . . . . . . . . Follow-up Attacks . | . . . . . . . . . . Damage Inflicted 11611 | 100 559 666 2778 1838 531 3654 1485 . . Guns 1625 | 100 556 646 323 . . . . . . Cannons 7645 | . . . 2084 488 531 3622 920 . . Explosions 2283 | . . . 336 1350 . 32 565 . . Melee . | . . . . . . . . . . Ramming 38 | . 3 . 35 . . . . . . Kinetic . | . . . . . . . . . . Thermal 10435 | 100 556 666 1637 1838 531 3622 1485 . . Explosive . | . . . . . . . . . . Electromagnetic 1138 | . . . 1106 . . 32 . . . Impact . | . . . . . . . . . . Slashing . | . . . . . . . . . . Piercing . | . . . . . . . . . . Highest Corruption 7 | . . . 7 5 . 2 . . . Average Corruption 3 | . . . 4 4 . 1 . . . Corruption Purged 1 | . . . . . . 1 . . . Corruption Blocked . | . . . . . . . . . . Effects 29 | . . . 14 4 . 11 . . . Message Errors 8 | . . . 5 . . 3 . . . Matter Fused 5 | . . . 2 1 . 2 . . . Heat Flow Errors 2 | . . . 1 . . 1 . . . Energy Discharges 2 | . . . . 1 . 1 . . . Data Loss (minor) 5 | . . . 1 1 . 3 . . . Data Loss (major) 6 | . . . 5 1 . . . . . Weapon Failures 1 | . . . . . . 1 . . . Overload Shots . | . . . . . . . . . . Overflow Damage 496 | . . . 93 187 . 28 188 . . Projectiles 121 | . . . 88 . . 28 5 . . Explosions 370 | . . . . 187 . . 183 . . Melee 5 | . . . 5 . . . . . . Knockbacks . | . . . . . . . . . . Impact . | . . . . . . . . . . Kinetic . | . . . . . . . . . . Secondary . | . . . . . . . . . . Self-Inflicted Damage 536 | . . . 76 96 . 9 355 . . Shots 9 | . . . 2 1 . 1 5 . . Rammed 2 | . 1 . 1 . . . . . . Targets Rammed 3 | . 2 . 1 . . . . . . Kicked . | . . . . . . . . . . Crushed 1 | . 1 . . . . . . . . Highest Temperature 718 | 118 408 386 554 228 228 546 718 4 505 Average Temperature 172 | 59 156 139 222 82 95 154 263 2 262 Received Heat Transfer 1860 | . 249 63 828 72 54 387 207 . . Effects 91 | . 9 1 32 . . 8 26 . 15 Shutdowns 24 | . 2 1 8 . . 4 9 . . Energy Bleed 9 | . 2 . 2 . . 1 2 . 2 Interference 22 | . 4 . 7 . . . 8 . 3 Matter Decay 4 | . . . 3 . . . 1 . . Short Circuit 10 | . 1 . 4 . . 1 1 . 3 Damage (minor) 6 | . . . 2 . . 1 1 . 2 Damage (major) 11 | . . . 5 . . . 2 . 4 Damage (core) 5 | . . . 1 . . 1 2 . 1 Siege Activations . | . . . . . . . . . . Martial Activations . | . . . . . . . . . . Shielding Activations . | . . . . . . . . . . Robots Disrupted . | . . . . . . . . . . Combat Hostiles . | . . . . . . . . . . Robots Corrupted 2 | . . . 2 . . . . . . Combat Hostiles 2 | . . . 2 . . . . . . Parts Fried 8 | . . . 8 . . . . . . Impact Corruptions 1 | . . . 1 . . . . . . Robots Melted 7 | . 2 . 2 . . 2 1 . . Combat Hostiles 6 | . 2 . 2 . . 2 . . . Parts Melted 35 | . 9 3 9 2 1 9 2 . . Heat Transferred 15474 | 296 2035 1790 2816 1444 629 4770 1694 . . Parts Sabotaged . | . . . . . . . . . . Parts Stolen . | . . . . . . . . . . Parts Stripped . | . . . . . . . . . . Power Chain Reactions 4 | . . . 4 . . . . . . Alert | -11 -10 -10 -8 -7 -6 -5 -4 -4 -4 ------- Run | Yrd Mat Sub Mat Fac Fac Fac Fac Was Fac Maximum Alert Level 2 | . . . 1 2 1 . 1 . . Low Security (%) 80 | 100 100 . 92 19 36 100 76 100 100 Level 1 18 | . . . 7 71 63 . 23 . . Level 2 1 | . . . . 9 . . . . . Level 3 . | . . . . . . . . . . Level 4 . | . . . . . . . . . . Level 5 . | . . . . . . . . . . High Security . | . . . . . . . . . . Max Security . | . . . . . . . . . . Peak Influence 463 | 5 56 . 285 463 225 136 223 38 68 Initial 218 | . . . 51 129 218 . 3 . . Average 91 | . 12 . 92 285 173 49 74 6 5 Influence Increases 3196 | 10 189 265 866 580 176 606 311 90 103 Destroy 0b10 Robot/C 1640 | . 140 200 520 160 80 380 120 . 40 Destroy 0b10 Robot/NC 150 | 10 10 . 40 35 15 10 25 . 5 Destroy Leader 396 | . 30 20 130 32 42 120 20 . 2 Allied During Kill 42 | . . . . . . . . . 42 Successful Hack 104 | . 9 . 27 12 24 26 6 . . Disable Machine 375 | . . . 15 240 . 30 90 . . Destroy Structure 309 | . . . 29 71 15 40 50 90 14 Lose Combat Pursuer 180 | . . 45 105 30 . . . . . Influence Decreases 3128 | 10 149 206 680 418 623 598 319 90 35 Entered New Map 458 | . . 20 48 156 229 . 5 . . Time Decay 1778 | 10 139 186 411 262 244 346 75 70 35 Lost Part 501 | . 10 . 130 . . 122 239 . . Lost Ally 20 | . . . . . . . . 20 . Purge Threat 371 | . . . 91 . 150 130 . . . Squads Dispatched 29 | . 2 . 5 5 3 11 3 . . Investigation 7 | . . . 1 2 1 3 . . . Extermination 4 | . . . . 1 1 2 . . . Reinforcement 12 | . 2 . 2 2 1 3 2 . . Assault . | . . . . . . . . . . Garrison 6 | . . . 2 . . 3 1 . . Intercept . | . . . . . . . . . . Searches Triggered . | . . . . . . . . . . Construction Impeded 1 | . . . . . . 1 . . . Haulers Reinforced 1 | . . . . 1 . . . . . Active Scanning Responses . | . . . . . . . . . . Cargo Convoy Interrupts . | . . . . . . . . . . Stealth | -11 -10 -10 -8 -7 -6 -5 -4 -4 -4 --------- Run | Yrd Mat Sub Mat Fac Fac Fac Fac Was Fac Distress Signals 4 | . 2 . 1 . . 1 . . . Communications Jammed . | . . . . . . . . . . Distress Signals . | . . . . . . . . . . Times Spotted 128 | . 11 18 42 10 8 20 10 6 3 Peak Tracking Total 8 | . 5 4 8 3 2 4 6 3 2 Tactical Retreats 11 | . . 2 7 2 . . . . . Traps | -11 -10 -10 -8 -7 -6 -5 -4 -4 -4 ------- Run | Yrd Mat Sub Mat Fac Fac Fac Fac Was Fac Traps Triggered 16 | . . . 5 4 3 3 1 . . Indirectly . | . . . . . . . . . . Trap Hack Attempts . | . . . . . . . . . . Triggered . | . . . . . . . . . . Disarmed . | . . . . . . . . . . Reprogrammed . | . . . . . . . . . . Reused . | . . . . . . . . . . Traps Extracted . | . . . . . . . . . . Installed . | . . . . . . . . . . Triggered . | . . . . . . . . . . Machines | -11 -10 -10 -8 -7 -6 -5 -4 -4 -4 ---------- Run | Yrd Mat Sub Mat Fac Fac Fac Fac Was Fac Machines Disabled 26 | . . 1 1 16 . 2 6 . . Max in Single Turn 8 | . . 1 1 8 . 2 6 . . Garrison Access 2 | . . . 1 . . . . . 1 Machines Repaired . | . . . . . . . . . . Machines Dismantled . | . . . . . . . . . . Machines Sabotaged . | . . . . . . . . . . Overloaded Fab Kills . | . . . . . . . . . . Hacking | -11 -10 -10 -8 -7 -6 -5 -4 -4 -4 --------- Run | Yrd Mat Sub Mat Fac Fac Fac Fac Was Fac Machines Accessed 34 | . 3 3 8 6 4 6 1 . 3 Terminals 17 | . 2 . 4 2 3 5 . . 1 Fabricators 3 | . . . . 2 . . . . 1 Repair Stations 4 | . . . 2 . 1 . 1 . . Recycling Units 1 | . 1 . . . . . . . . Scanalyzers 3 | . . . 1 2 . . . . . Garrison Access 3 | . . . 1 . . 1 . . 1 Total Hacks 82 | . 8 12 23 11 8 10 4 . 6 Successful 41 | . 5 12 12 2 3 3 2 . 2 Failed 40 | . 3 . 11 8 5 7 2 . 4 Catastrophic 11 | . 1 . 2 1 3 4 . . . Database Lockouts 1 | . . . . 1 . . . . . Manual 36 | . 6 . 11 4 5 7 . . 3 Terminals 37 | . 6 . 11 4 5 8 . . 3 Fabricators 3 | . . . . 2 . . . . 1 Repair Stations 12 | . . . 5 . 3 . 4 . . Recycling Units 2 | . 2 . . . . . . . . Scanalyzers 9 | . . . 4 5 . . . . . Garrison Access 7 | . . . 3 . . 2 . . 2 Terminal Hacks 19 | . 1 12 2 . 1 3 . . . Record 10 | . . 9 . . . 1 . . . Open Door 1 | . . 1 . . . . . . . Unreport Threat 4 | . . . 1 . 1 2 . . . Registered Components 1 | . . . 1 . . . . . . Zone Layout 1 | . 1 . . . . . . . . Proto ID Catalog 1 | . . 1 . . . . . . . Release Object 1 | . . 1 . . . . . . . Fabricator Hacks 2 | . . . . 1 . . . . 1 Network Status 2 | . . . . 1 . . . . 1 Repair Station Hacks 7 | . . . 3 . 2 . 2 . . Scan Component 4 | . . . 2 . 1 . 1 . . Repair 3 | . . . 1 . 1 . 1 . . Recycling Unit Hacks 2 | . 2 . . . . . . . . Report Inventory 1 | . 1 . . . . . . . . Retrieve Matter 1 | . 1 . . . . . . . . Scanalyzer 4 | . . . 3 1 . . . . . Retrieve Study 4 | . . . 3 1 . . . . . Garrison Access Hacks 2 | . . . 1 . . . . . 1 Seal Access 2 | . . . 1 . . . . . 1 Unauthorized Hacks 5 | . 2 . 3 . . . . . . Terminals 5 | . 2 . 3 . . . . . . Botnet 5 | . 2 . 3 . . . . . . Fabricators . | . . . . . . . . . . Repair Stations . | . . . . . . . . . . Recycling Units . | . . . . . . . . . . Scanalyzers . | . . . . . . . . . . Garrison Access . | . . . . . . . . . . Data Cores Recovered 1 | . . . . . 1 . . . . Used . | . . . . . . . . . . Hacking Detections 23 | . 1 . 6 4 4 6 . . 2 Full Trace Events 5 | . . . 1 2 . 2 . . . Feedback Events 1 | . . . . . . 1 . . . Corruption 1 | . . . . . . 1 . . . Feedback Blocked . | . . . . . . . . . . Robot Schematics Acquired . | . . . . . . . . . . Robots Built . | . . . . . . . . . . Authchips . | . . . . . . . . . . Time . | . . . . . . . . . . Total Robot Build Rating . | . . . . . . . . . . Part Schematics Acquired . | . . . . . . . . . . Parts Built . | . . . . . . . . . . Authchips . | . . . . . . . . . . Time . | . . . . . . . . . . Total Part Build Rating . | . . . . . . . . . . Part Studies Acquired 2 | . . . 1 1 . . . . . Parts Repaired 3 | . . . 1 . 1 . 1 . . Time 110 | . . . 44 . 16 . 50 . . Parts Recycled . | . . . . . . . . . . Recycled Matter . | . . . . . . . . . . Retrieved Matter . | . . . . . . . . . . Retrieved Components . | . . . . . . . . . . Parts Scanalyzed . | . . . . . . . . . . Part Schematics Acquired . | . . . . . . . . . . Parts Damaged . | . . . . . . . . . . Bothacking | -11 -10 -10 -8 -7 -6 -5 -4 -4 -4 ------------ Run | Yrd Mat Sub Mat Fac Fac Fac Fac Was Fac Used RIF Installer . | . . . . . . . . . . Robots Hacked . | . . . . . . . . . . Non-combat . | . . . . . . . . . . Combat . | . . . . . . . . . . Robot Hacks Applied . | . . . . . . . . . . Relay Couplers Released 2 | . . . 2 . . . . . . Machine Destruction 2 | . . . 2 . . . . . . Fabnet Peak Effective % . | . . . . . . . . . . Robots Rewired . | . . . . . . . . . . Allies Hacked . | . . . . . . . . . . Hacks Repelled . | . . . . . . . . . . Allies | -11 -10 -10 -8 -7 -6 -5 -4 -4 -4 -------- Run | Yrd Mat Sub Mat Fac Fac Fac Fac Was Fac Total Allies 19 | . . . . . . . . 19 . Largest Group 19 | . . . . . . . . 19 9 Highest-Rated Group 702 | . . . . . . . . 702 375 Highest-Rated Ally 50 | . . . . . . . . 50 50 Total Orders . | . . . . . . . . . . Ally Attacks 151 | . . . . . . . . 137 14 Total Damage 7791 | . . . . . . . . 7308 483 Kills 18 | . . . . . . . . 15 3 Allies Corrupted . | . . . . . . . . . . Allies Melted . | . . . . . . . . . . Intel | -11 -10 -10 -8 -7 -6 -5 -4 -4 -4 ------- Run | Yrd Mat Sub Mat Fac Fac Fac Fac Was Fac Active Infowar (turns) 4288 | 13 468 3430 372 . . 5 . . . Optics 668 | . . 668 . . . . . . . Sensors 5 | . . . . . . 5 . . . Terrain 2906 | . . 2630 276 . . . . . . Structural 201 | . . . 201 . . . . . . Seismic 613 | 13 468 132 . . . . . . . Robot Analysis Total . | . . . . . . . . . . Derelict Logs Recovered 2 | . . 2 . . . . . . . Drone Launches . | . . . . . . . . . . Drone Recoveries . | . . . . . . . . . . Exploration | -11 -10 -10 -8 -7 -6 -5 -4 -4 -4 ------------- Run | Yrd Mat Sub Mat Fac Fac Fac Fac Was Fac Turns Passed 8307 | 114 485 3562 1088 573 557 904 243 363 418 Spaces Moved 4870 | 56 201 1951 578 504 421 609 111 207 232 Core 51 | 5 . . 1 . . . 26 19 . Treads 2731 | 51 201 1951 126 . . . 6 164 232 Legs . | . . . . . . . . . . Wheels 2064 | . . . 451 504 421 609 79 . . Hover 24 | . . . . . . . . 24 . Flight . | . . . . . . . . . . Fastest Speed 50 | 50 160 160 95 95 110 95 50 50 170 Average Speed 136 | 150 160 160 120 95 110 103 123 154 173 Slowest Speed 1400 | 160 160 160 600 95 110 125 1400 180 180 Overloaded Moves . | . . . . . . . . . . Propulsion Burnouts . | . . . . . . . . . . Robots Hopped . | . . . . . . . . . . Potential Cave-ins . | . . . . . . . . . . Cave-ins Triggered . | . . . . . . . . . . Exploration Rate (%) 33 | 4 33 93 51 20 18 18 4 86 5 Regions Visited 9 Branch Regions 1 Pre-discovered Areas . | . . . . . . . . . . Known Exits Taken . | . . . . . . . . . . Unknown Exits Taken 7 | 1 1 1 1 1 1 1 . . . Scrap Searched 3 | . . 3 . . . . . . . Spaces Dug . | . . . . . . . . . . Terrain Destroyed 170 | . . . 32 74 14 18 32 . . Melee . | . . . . . . . . . . Projectile 63 | . . . 14 9 14 18 8 . . AOE 107 | . . . 18 65 . . 24 . . Terrain Rammed . | . . . . . . . . . . Walls Destroyed . | . . . . . . . . . . Machines Disabled . | . . . . . . . . . . Actions | -11 -10 -10 -8 -7 -6 -5 -4 -4 -4 --------- Run | Yrd Mat Sub Mat Fac Fac Fac Fac Was Fac Total 6021 | 74 295 2293 846 579 489 754 190 249 252 Wait 599 | . 39 276 130 33 45 18 37 21 . Move 4862 | 55 200 1950 577 503 420 608 111 206 232 Hop . | . . . . . . . . . . Pick Up 75 | 5 6 6 28 7 2 13 1 4 3 Fast Attach 54 | 6 1 2 9 5 1 12 6 8 4 Attach 54 | 2 1 3 10 3 2 16 14 2 1 Detach 20 | 1 1 . 2 5 . 5 1 4 1 Swap 39 | . 2 6 12 3 . 11 . 2 3 Drop 60 | . 5 6 15 10 . 11 3 2 8 Fire 247 | 5 38 44 62 10 11 60 17 . . Melee . | . . . . . . . . . . Ram 1 | . . . 1 . . . . . . Kick . | . . . . . . . . . . Crush 2 | . 2 . . . . . . . . Escape Stasis 8 | . . . . . 8 . . . . Rewire . | . . . . . . . . . . Trap . | . . . . . . . . . . Miscellaneous . | . . . . . . . . . . Route ------- -11/Scrapyard -10/Materials (discovered 3 exits: [Mat] / [*Min] / *Sub) -10/Subcaves (discovered 2 exits: *Mat x2) -8/Materials (discovered 2 exits: *Fac x2) -7/Factory -6/Factory -5/Factory -4/Factory -4/Waste -4/Factory History --------- Turn | Location | Event 52 | -11/Scrapyard | Discovered new exit (range 14) 115 | -11/Scrapyard | Entered Materials 313 | -10/Materials | Build established: Mutant 364 | -10/Materials | Discovered new exit (range 10) 444 | -10/Materials | Discovered new exit (range 11) 591 | -10/Materials | Discovered new exit (range 7) 600 | -10/Materials | Entered Subcaves 731 | -10/Subcaves | Core integrity fell below 50% 1058 | -10/Subcaves | Discovered new exit (range 10) 1504 | -10/Subcaves | Core integrity fell below 20% 1555 | -10/Subcaves | Shifting Twisted Machinery released Sub. Laser 1812 | -10/Subcaves | A swath of the cavern ceiling suddenly collapsed 2006 | -10/Subcaves | Shifting Twisted Machinery released Sub. Power Source 2459 | -10/Subcaves | Visited 4L-MR0's lab 2476 | -10/Subcaves | Found Meta Core 2477 | -10/Subcaves | Attached Meta Core, gained temporary slots: Propulsion, Utility, Weapon 2778 | -10/Subcaves | Build established: Tank 2822 | -10/Subcaves | Discovered new exit (range 8) 3156 | -10/Subcaves | Learned Materials emergency access door positions 4162 | -10/Subcaves | Entered Materials 4162 | -8/Materials | Evolved 4 slots: Propulsion x1, Utility x2, Weapon x1 4446 | -8/Materials | Discovered new exit (range 15) 4478 | -8/Materials | Garrison activated, responded to threat 4548 | -8/Materials | Lost 9 parts (4n2u3w) 4718 | -8/Materials | Repaired Imp. EM Pulse Cannon 4890 | -8/Materials | Core integrity fell below 50% 5028 | -8/Materials | Build established: Gunner 5247 | -8/Materials | Discovered new exit (range 3) 5250 | -8/Materials | Entered Factory 5250 | -7/Factory | Evolved 2 slots: Power x1, Utility x1 5573 | -7/Factory | Central database locked down 5795 | -7/Factory | Discovered new exit (range 5) 5810 | -7/Factory | Found Powered Armor 5823 | -7/Factory | Entered another Factory area 5823 | -6/Factory | Evolved 2 slots: Utility x2 5881 | -6/Factory | Repaired Arm. Wheel+ 6111 | -6/Factory | Build established: Tank 6210 | -6/Factory | Spotted B-75 Beast 6269 | -6/Factory | Allied Derelicts emerged from ambush trap array 6352 | -6/Factory | Discovered new exit (range 14) 6380 | -6/Factory | Entered another Factory area 6380 | -5/Factory | Evolved 2 slots: Power x1, Propulsion x1 6554 | -5/Factory | Lost 4 parts (2n2u) 6629 | -5/Factory | Lost 3 parts (2n1u) 6861 | -5/Factory | Lost 3 parts (1p1n1w) 7008 | -5/Factory | Garrison activated, responded to threat 7272 | -5/Factory | Build established: Scavenger-Gunner 7275 | -5/Factory | Discovered new exit (range 4) 7284 | -5/Factory | Entered another Factory area 7284 | -4/Factory | Evolved 2 slots: Utility x2 7363 | -4/Factory | Repaired Adv. Heat Sink 7441 | -4/Factory | Garrison activated, responded to threat 7482 | -4/Factory | Core integrity fell below 50% 7509 | -4/Factory | Core integrity fell below 20% 7527 | -4/Factory | Lost 23 parts (4p5n8u6w) 7527 | -4/Factory | Sucked down chute 7527 | -4/Factory | Entered Waste 7534 | -4/Waste | Found Gamma Bomb Array 7547 | -4/Waste | Warlord forces began an assault 7731 | -4/Waste | Spotted C-40 Crusher 7738 | -4/Waste | Allies destroyed C-40 Crusher 7744 | -4/Waste | Spotted C-40 Crusher 7746 | -4/Waste | Spotted C-40 Crusher 7752 | -4/Waste | Spotted C-40 Crusher 7753 | -4/Waste | Allies destroyed C-40 Crusher 7762 | -4/Waste | Allies destroyed C-40 Crusher 7764 | -4/Waste | Allies destroyed C-40 Crusher 7790 | -4/Waste | Spotted C-40 Crusher 7795 | -4/Waste | Lost 3 allies 7798 | -4/Waste | Allies destroyed C-40 Crusher 7804 | -4/Waste | Spotted C-40 Crusher 7814 | -4/Waste | Allies destroyed C-40 Crusher 7845 | -4/Waste | Lost 7 allies 7867 | -4/Waste | Discovered new exit (range 11) 7890 | -4/Waste | Entered Factory 7890 | -4/Factory | Accompanied by 9 allies 7903 | -4/Factory | Build established: Tank 8210 | -4/Factory | Allied Derelicts emerged from ambush trap array 8309 | -4/Factory | Core destroyed Last Messages --------------- 08293_ Overheating: Hacking Suite damaged (-6). 08293_ Overheating: Hrd. Medium Armor Plating damaged (-148). 08293_ Internal heat damage averted by Adv. Cryofiber Web. 08293_ Overheating: Hrd. Medium Armor Plating damaged (-79). 08295_ Power failure averted by Adv. Cryofiber Web. 08296_ Antimatter Reactor broken. 08296_ Overheating: Short circuit. 08297_ K-01 Serf collects debris. 08299_ Power failure averted by Adv. Cryofiber Web. 08299_ Imp. Target Analyzer broken. 08299_ Overheating: Short circuit. 08299_ A2-SLI(m) fixes Antimatter Reactor. 08302_ Power failure averted by Adv. Cryofiber Web. 08302_ K-01 Serf collects debris. 08304_ Power failure averted by Adv. Cryofiber Web. 08304_ A2-SLI(m) fixes Imp. Target Analyzer. 08307_ Power failure averted by Adv. Cryofiber Web. 08307_ System interference averted by Adv. Cryofiber Web. 08308_ A2-SLI(m) repairs Hrd. Medium Armor Plating. 08309_ Overheating: Core damaged (-195). Map ----- +----------------------------------------------------+ | ?????????????????????????????# #?????????????????? | | ?????????????????????????????#[#?????????????????? | | ?????????????????????????????# ########??????????? | | ?????????????????????????????# # #??????????? | | ?????????????????????????????# # "" #??????????? | | ?????????????????????????????# # "T #??????????? | | ?????????????????????????????# / "" #??????????? | | ?????????????????????????????# # "" #??????????? | | ???????????????????#########?# # #??????????? | | ##?????????????????# # ########??????????? | | #?????????????????# """ """ # #?????????????????? | | #?????????????????# """ """ # #?????????????????? | | #?????????????????# """ """ # #?????????????????? | | #?????????????????# "" "" # #?????????????????? | | #?????????????##### "" "" # #?????????????????? | | #?????????????# # # # #?????????????????? | | ##?????????????# ![ # #?????????????????? | | ################ ### ##+##### #?????????????????? | | #?????????????????? | | ####?????????????????? | | #????????????????????? | | #????????????????????? | | d #????????????????????? | | ####+####################m#######????????????????? | | ]#??????# = #????????????????? | | """" #??????# @ #????????????????? | | """"" #??????# #????????????????? | | "F "" #??????# """" """" #????????????????? | | "" =#??????# """" """" #????????????????? | | #??????# """" """" #????????????????? | | """""" ! #??????# """" """" #????????????????? | | """""" #?????????""" """" #????????????????? | | """""" #??????????"" ?????? #????????????????? | | """""" #?????????? ???????#????????????????? | | #??????????? ????????????????????????? | | ############???????????#?????????????????????????? | | | | | | | | | | | | | | | | | | | | | | | | | | | | | +----------------------------------------------------+ Best States ------------- Heat Dissipation 73 Coolant Potential 65 Energy Generation 48 Energy Capacity 860 Matter Stores 300 Matter Capacity 300 Sight Range 21 Terrain Scan Range 14 Terrain Scan Density 210 Base Temperature (-) 200 Armor Coverage 825 Resistance: EM 25 Weapon Cycling 20 Evasion (%) 53 Targeting Accuracy 8 Target Analysis 6 Recoil Reduction 4 Particle Charging 15 Offensive Hacking 10 Trap Extractor Capacity 8 Item Schematics ----------------- None Robot Schematics ------------------ None Fabricated ------------ Nothing Repaired ---------- Imp. EM Pulse Cannon | 1% | -8/Materials Arm. Wheel | 11% | -6/Factory Adv. Heat Sink | 8% | -4/Factory Studied --------- Arm. Wheel | -8/Materials | Hacked Mic. Nuclear Core | -7/Factory | Hacked Alien Tech Used ----------------- None Achievements -------------- Fancy Inventory Hydra Mistaken Identity The More The Merrier Challenges ------------ None Game ------ Seed DirectedCoilDisplacer Manual? 0 Play Time 01:31:19 Cumulative 23.0 hours Start 2026.01.11 @ 19:10:40 End 2026.01.11 @ 20:46:28 Sessions 1 Manual Loads 0 Difficulty Rogue Special Mode None Game No. 29 Rogue 29 Adventurer 0 Explorer 0 Win Type - Total 0 Types 0/0/0/0/0/0/0/0/0/0 Lore% 15 Gallery% 27 Achievement% 20 Wizard Run 0 Options --------- Layout 0 ASCII 0 Keyboard 1 Movement Numpad Keybinds 0 Fullscreen 2 Font 18/SmallcapsGlow Map View 112x50 Zoom Use 0% Tactical HUD 1 Map Filters NONE Filters NONE Steam 1 RUN: 4dc1aa7d-f872-490d-9f6f-d28ca32c0951